[Event "*** Titled Tuesday Blitz"]
[Site "Chess.com"]
[Date "2020.11.24"]
[Round "9"]
[White "OK97"]
[Black "Iskusnyh"]
[Result "1-0"]
[WhiteElo "2789"]
[BlackElo "2613"]
[TimeControl "180+1"]
[EndTime "12:03:50 PST"]
[Termination "OK97 won by checkmate"]

1. d4 {[%clk 0:03:00.9]} 1... d5 {[%clk 0:02:58.8]} 2. c4 {[%clk 0:02:58.2]}
2... c6 {[%clk 0:02:58.2]} 3. Nf3 {[%clk 0:02:58.8]} 3... Nf6 {[%clk 0:02:57.4]}
4. Qb3 {[%clk 0:02:59.3]} 4... dxc4 {[%clk 0:02:55.6]} 5. Qxc4 {[%clk
0:03:00.2]} 5... Bf5 {[%clk 0:02:55.7]} 6. g3 {[%clk 0:02:59.5]} 6... e6 {[%clk
0:02:55.5]} 7. Bg2 {[%clk 0:02:59.9]} 7... Be7 {[%clk 0:02:55.5]} 8. O-O {[%clk
0:03:00]} 8... O-O {[%clk 0:02:55.1]} 9. e3 {[%clk 0:02:58.3]} 9... Nbd7 {[%clk
0:02:54.7]} 10. Rd1 {[%clk 0:02:57.5]} 10... Qc7 {[%clk 0:02:43.1]} 11. Nc3
{[%clk 0:02:55.7]} 11... e5 {[%clk 0:02:31.6]} 12. e4 {[%clk 0:02:55.1]} 12...
Bg4 {[%clk 0:02:26.3]} 13. Be3 {[%clk 0:02:54.5]} 13... exd4 {[%clk 0:02:22.2]}
14. Bxd4 {[%clk 0:02:53.5]} 14... Bxf3 {[%clk 0:02:17.2]} 15. Bxf3 {[%clk
0:02:53.4]} 15... Ne5 {[%clk 0:02:17.7]} 16. Qe2 {[%clk 0:02:53.3]} 16... Nxf3+
{[%clk 0:02:09.2]} 17. Qxf3 {[%clk 0:02:54.2]} 17... Rad8 {[%clk 0:02:04]} 18.
Rac1 {[%clk 0:02:42.7]} 18... Qa5 {[%clk 0:02:02.6]} 19. a3 {[%clk 0:02:42.1]}
19... Rfe8 {[%clk 0:01:34.9]} 20. Kg2 {[%clk 0:02:41.4]} 20... Nd7 {[%clk
0:01:23.8]} 21. Bxg7 {[%clk 0:01:18.6]} 21... Kxg7 {[%clk 0:01:22.8]} 22. Rxd7
{[%clk 0:01:18.8]} 22... Rxd7 {[%clk 0:01:22.4]} 23. Qg4+ {[%clk 0:01:19.1]}
23... Qg5 {[%clk 0:01:22.6]} 24. Qxd7 {[%clk 0:01:19.2]} 24... Rd8 {[%clk
0:01:20]} 25. Qxb7 {[%clk 0:01:19.4]} 25... Qxc1 {[%clk 0:01:18.8]} 26. Qxe7
{[%clk 0:01:19.5]} 26... Rd2 {[%clk 0:01:15]} 27. Qg5+ {[%clk 0:01:16.6]} 27...
Kf8 {[%clk 0:01:14.8]} 28. Qc5+ {[%clk 0:01:14.6]} 28... Kg8 {[%clk 0:01:08.6]}
29. Qg5+ {[%clk 0:01:07.8]} 29... Kf8 {[%clk 0:01:08.2]} 30. Qc5+ {[%clk
0:00:54.7]} 30... Kg8 {[%clk 0:01:08.1]} 31. Qxc6 {[%clk 0:00:39.3]} 31... Rxb2
{[%clk 0:01:05.4]} 32. Qe8+ {[%clk 0:00:35.6]} 32... Kg7 {[%clk 0:01:04.6]} 33.
Qe5+ {[%clk 0:00:35.6]} 33... Kg8 {[%clk 0:00:45.6]} 34. Nd5 {[%clk 0:00:34.2]}
34... Rb1 {[%clk 0:00:21.9]} 35. Nf6+ {[%clk 0:00:33.6]} 35... Kf8 {[%clk
0:00:17.1]} 36. Nxh7+ {[%clk 0:00:33.3]} 36... Kg8 {[%clk 0:00:17.6]} 37. Nf6+
{[%clk 0:00:33.6]} 37... Kf8 {[%clk 0:00:18.2]} 38. Qd6+ {[%clk 0:00:19.5]}
38... Kg7 {[%clk 0:00:18.1]} 39. Nh5+ {[%clk 0:00:18.3]} 39... Kg8 {[%clk
0:00:14.4]} 40. Nf6+ {[%clk 0:00:14.9]} 40... Kg7 {[%clk 0:00:14.2]} 41. Nh5+
{[%clk 0:00:13.6]} 41... Kg8 {[%clk 0:00:14.2]} 42. Qd8+ {[%clk 0:00:06.3]}
42... Kh7 {[%clk 0:00:13.8]} 43. Nf6+ {[%clk 0:00:06.9]} 43... Kg7 {[%clk
0:00:12.6]} 44. Ne8+ {[%clk 0:00:07.3]} 44... Kh7 {[%clk 0:00:07.7]} 45. Qh4+
{[%clk 0:00:07.3]} 45... Kg6 {[%clk 0:00:07.4]} 46. Qf6+ {[%clk 0:00:06.6]}
46... Kh5 {[%clk 0:00:02.6]} 47. Ng7+ {[%clk 0:00:06.8]} 47... Kg4 {[%clk
0:00:02]} 48. h3# {[%clk 0:00:07.4]} 1-0

[Event "*** Titled Tuesday Blitz"]
[Site "Chess.com"]
[Date "2020.11.24"]
[Round "9"]
[White "annacramling"]
[Black "Ashedu66"]
[Result "1-0"]
[WhiteElo "2080"]
[BlackElo "2223"]
[TimeControl "180+1"]
[EndTime "12:03:51 PST"]
[Termination "annacramling won on time"]

1. d4 {[%clk 0:03:00.9]} 1... d6 {[%clk 0:02:59.1]} 2. Nf3 {[%clk 0:02:59.7]}
2... Bg4 {[%clk 0:02:58.1]} 3. e4 {[%clk 0:02:57.7]} 3... Nf6 {[%clk 0:02:54.6]}
4. Nc3 {[%clk 0:02:45.7]} 4... e6 {[%clk 0:02:47.7]} 5. Bg5 {[%clk 0:02:43]}
5... Be7 {[%clk 0:02:45.1]} 6. Be2 {[%clk 0:02:38.3]} 6... d5 {[%clk 0:02:38.7]}
7. e5 {[%clk 0:02:34.5]} 7... Nfd7 {[%clk 0:02:31]} 8. Bxe7 {[%clk 0:02:28.4]}
8... Qxe7 {[%clk 0:02:30.2]} 9. O-O {[%clk 0:02:28.1]} 9... a6 {[%clk 0:02:29]}
10. Nd2 {[%clk 0:01:48.4]} 10... Bxe2 {[%clk 0:02:27.4]} 11. Qxe2 {[%clk
0:01:48.6]} 11... c5 {[%clk 0:02:27.5]} 12. dxc5 {[%clk 0:01:47.4]} 12... Nc6
{[%clk 0:02:26.1]} 13. f4 {[%clk 0:01:29.1]} 13... Qxc5+ {[%clk 0:02:18.6]} 14.
Kh1 {[%clk 0:01:28.4]} 14... O-O {[%clk 0:02:17.2]} 15. Rf3 {[%clk 0:01:17.1]}
15... Nd4 {[%clk 0:02:10.3]} 16. Nb3 {[%clk 0:01:07.7]} 16... Nxe2 {[%clk
0:01:58.4]} 17. Nxc5 {[%clk 0:01:07.4]} 17... Nxc5 {[%clk 0:01:48]} 18. Nxe2
{[%clk 0:01:07.1]} 18... Rac8 {[%clk 0:01:45.9]} 19. c3 {[%clk 0:01:06.6]} 19...
Ne4 {[%clk 0:01:42.7]} 20. Nd4 {[%clk 0:01:04.4]} 20... b5 {[%clk 0:01:42.4]}
21. a3 {[%clk 0:01:03]} 21... Rc7 {[%clk 0:01:17.1]} 22. Rd1 {[%clk 0:00:59.2]}
22... Rfc8 {[%clk 0:01:16.2]} 23. f5 {[%clk 0:00:49.6]} 23... exf5 {[%clk
0:01:08.6]} 24. Rxf5 {[%clk 0:00:49.2]} 24... Nc5 {[%clk 0:00:38.5]} 25. Ne2
{[%clk 0:00:32.4]} 25... Rd7 {[%clk 0:00:20.5]} 26. h3 {[%clk 0:00:25.6]} 26...
Ne6 {[%clk 0:00:19.7]} 27. Nf4 {[%clk 0:00:20.7]} 27... Nxf4 {[%clk 0:00:17.7]}
28. Rxf4 {[%clk 0:00:21.6]} 28... Re8 {[%clk 0:00:15.9]} 29. Re1 {[%clk
0:00:11.2]} 29... Rde7 {[%clk 0:00:12.1]} 30. Rf5 {[%clk 0:00:06.8]} 30... f6
{[%clk 0:00:05.3]} 31. e6 {[%clk 0:00:05.2]} 31... Rxe6 {[%clk 0:00:04.8]} 32.
Rxe6 {[%clk 0:00:05.5]} 32... Rxe6 {[%clk 0:00:05]} 33. Rxd5 {[%clk 0:00:06.4]}
33... Re2 {[%clk 0:00:03]} 34. Rd6 {[%clk 0:00:04.4]} 34... Rxb2 {[%clk
0:00:03]} 35. Rxa6 {[%clk 0:00:04.7]} 35... Rb3 {[%clk 0:00:03.2]} 36. Rb6
{[%clk 0:00:03.5]} 36... Rxa3 {[%clk 0:00:03]} 37. Rxb5 {[%clk 0:00:03.6]} 37...
Rxc3 {[%clk 0:00:03.2]} 38. Rb7 {[%clk 0:00:03.7]} 38... h5 {[%clk 0:00:02.6]}
39. Kh2 {[%clk 0:00:04.2]} 39... Kh7 {[%clk 0:00:02.8]} 40. h4 {[%clk
0:00:03.9]} 40... Ra3 {[%clk 0:00:02.2]} 41. g3 {[%clk 0:00:03.9]} 41... Kg6
{[%clk 0:00:02.5]} 42. Kh3 {[%clk 0:00:03.8]} 42... Rc3 {[%clk 0:00:02.6]} 43.
Rb5 {[%clk 0:00:03.3]} 43... f5 {[%clk 0:00:02.1]} 44. Rb6+ {[%clk 0:00:02.7]}
44... Kh7 {[%clk 0:00:02.3]} 45. Rb5 {[%clk 0:00:03]} 45... g6 {[%clk
0:00:02.3]} 46. Rb7+ {[%clk 0:00:03]} 46... Kg8 {[%clk 0:00:02.4]} 47. Ra7
{[%clk 0:00:02.4]} 47... Rb3 {[%clk 0:00:01.9]} 48. Kg2 {[%clk 0:00:03.1]} 1-0

[Event "*** Titled Tuesday Blitz"]
[Site "Chess.com"]
[Date "2020.11.24"]
[Round "9"]
[White "elohunter1999"]
[Black "woodhy"]
[Result "0-1"]
[WhiteElo "2560"]
[BlackElo "2465"]
[TimeControl "180+1"]
[EndTime "12:03:53 PST"]
[Termination "woodhy won by resignation"]

1. e4 {[%clk 0:03:00.9]} 1... e6 {[%clk 0:02:59.2]} 2. d4 {[%clk 0:03:00.6]}
2... d5 {[%clk 0:02:58.3]} 3. Nc3 {[%clk 0:03:00.7]} 3... Bb4 {[%clk 0:02:55.6]}
4. e5 {[%clk 0:03:00.4]} 4... c5 {[%clk 0:02:55.2]} 5. a3 {[%clk 0:03:00.2]}
5... Bxc3+ {[%clk 0:02:55.5]} 6. bxc3 {[%clk 0:03:01.1]} 6... Ne7 {[%clk
0:02:56]} 7. Qg4 {[%clk 0:03:01]} 7... Qc7 {[%clk 0:02:55.8]} 8. Qxg7 {[%clk
0:03:00.7]} 8... Rg8 {[%clk 0:02:56.3]} 9. Qxh7 {[%clk 0:03:00.7]} 9... cxd4
{[%clk 0:02:57.2]} 10. Ne2 {[%clk 0:03:00.7]} 10... Nbc6 {[%clk 0:02:57.6]} 11.
f4 {[%clk 0:03:00.7]} 11... Bd7 {[%clk 0:02:55.7]} 12. h4 {[%clk 0:02:59.8]}
12... dxc3 {[%clk 0:02:55.2]} 13. h5 {[%clk 0:02:59.8]} 13... d4 {[%clk
0:02:25.7]} 14. h6 {[%clk 0:02:58.9]} 14... O-O-O {[%clk 0:01:52.9]} 15. Qd3
{[%clk 0:02:56.9]} 15... Rg6 {[%clk 0:01:49.8]} 16. h7 {[%clk 0:02:55.6]} 16...
Rh8 {[%clk 0:01:49.2]} 17. Nxd4 {[%clk 0:02:55.4]} 17... Nxd4 {[%clk 0:01:40]}
18. Qxd4 {[%clk 0:02:56.3]} 18... Rg7 {[%clk 0:01:23.2]} 19. Bd3 {[%clk
0:02:32.7]} 19... Rxg2 {[%clk 0:01:19.7]} 20. Qxa7 {[%clk 0:02:13.9]} 20... Nc6
{[%clk 0:00:33]} 21. Qa8+ {[%clk 0:02:06.7]} 21... Nb8 {[%clk 0:00:32.8]} 22.
Be3 {[%clk 0:02:06.4]} 22... Bc6 {[%clk 0:00:24.6]} 23. O-O-O {[%clk 0:01:41.2]}
23... Qe7 {[%clk 0:00:17.9]} 24. Qa5 {[%clk 0:01:35]} 24... Rg3 {[%clk
0:00:13.7]} 25. Bc5 {[%clk 0:01:33.2]} 25... Qe8 {[%clk 0:00:10.7]} 26. Qxc3
{[%clk 0:01:29.9]} 26... Bxh1 {[%clk 0:00:09.1]} 27. Rxh1 {[%clk 0:01:27.5]}
27... Qc6 {[%clk 0:00:09.2]} 28. Bd4 {[%clk 0:00:56.8]} 28... Qxc3 {[%clk
0:00:10.1]} 29. Bxc3 {[%clk 0:00:57.7]} 29... Nd7 {[%clk 0:00:07.5]} 30. f5
{[%clk 0:00:56.1]} 30... Nc5 {[%clk 0:00:06.8]} 31. f6 {[%clk 0:00:40.9]} 31...
Nxd3+ {[%clk 0:00:06.9]} 32. cxd3 {[%clk 0:00:41.5]} 32... Rxd3 {[%clk
0:00:07.7]} 33. Bb4 {[%clk 0:00:42.1]} 33... Rd5 {[%clk 0:00:07.1]} 34. Rh5
{[%clk 0:00:37.4]} 34... Kd7 {[%clk 0:00:06.6]} 35. Be7 {[%clk 0:00:32]} 35...
Kc6 {[%clk 0:00:06.6]} 36. Kc2 {[%clk 0:00:31.6]} 36... Rd4 {[%clk 0:00:06.8]}
37. Kc3 {[%clk 0:00:30.3]} 37... Kd5 {[%clk 0:00:07.1]} 38. Bd6 {[%clk
0:00:19.2]} 38... Re4 {[%clk 0:00:04.7]} 39. Kd3 {[%clk 0:00:19.5]} 39... b5
{[%clk 0:00:04.5]} 40. Be7 {[%clk 0:00:16.7]} 40... Rxe5 {[%clk 0:00:04.5]} 41.
Rh3 {[%clk 0:00:16.7]} 41... Re4 {[%clk 0:00:04.2]} 42. Rh5+ {[%clk 0:00:15.5]}
42... e5 {[%clk 0:00:04.3]} 43. Bf8 {[%clk 0:00:14.2]} 43... Rxf8 {[%clk
0:00:03.8]} 44. h8=Q {[%clk 0:00:14.8]} 44... Rxh8 {[%clk 0:00:03.9]} 45. Rxh8
{[%clk 0:00:15.7]} 45... Rd4+ {[%clk 0:00:03.4]} 46. Kc3 {[%clk 0:00:16.2]}
46... Ke6 {[%clk 0:00:03.8]} 47. Rb8 {[%clk 0:00:15.6]} 47... Rd5 {[%clk
0:00:04.1]} 48. Rb6+ {[%clk 0:00:15.3]} 48... Kf5 {[%clk 0:00:04.5]} 49. Rc6
{[%clk 0:00:12.5]} 49... e4 {[%clk 0:00:04.5]} 50. Rc7 {[%clk 0:00:10.7]} 50...
Kxf6 {[%clk 0:00:04.8]} 51. Kc2 {[%clk 0:00:09.8]} 51... Ke6 {[%clk 0:00:04.9]}
52. Rc3 {[%clk 0:00:10.1]} 52... f5 {[%clk 0:00:05.1]} 53. Rh3 {[%clk
0:00:10.5]} 53... Ke5 {[%clk 0:00:06]} 54. Rf3 {[%clk 0:00:09.9]} 54... exf3
{[%clk 0:00:05.8]} 0-1

[Event "*** Titled Tuesday Blitz"]
[Site "Chess.com"]
[Date "2020.11.24"]
[Round "9"]
[White "Zarikovs1999"]
[Black "Sanyura"]
[Result "1-0"]
[WhiteElo "2397"]
[BlackElo "2505"]
[TimeControl "180+1"]
[EndTime "12:03:53 PST"]
[Termination "Zarikovs1999 won on time"]

1. e4 {[%clk 0:03:00.9]} 1... c6 {[%clk 0:02:59]} 2. d4 {[%clk 0:02:55.5]} 2...
d5 {[%clk 0:02:58.8]} 3. Nc3 {[%clk 0:02:55.2]} 3... dxe4 {[%clk 0:02:56.3]} 4.
Nxe4 {[%clk 0:02:56.1]} 4... Bf5 {[%clk 0:02:56.7]} 5. Ng3 {[%clk 0:02:55.9]}
5... Bg6 {[%clk 0:02:57.4]} 6. Nf3 {[%clk 0:02:56.8]} 6... Nd7 {[%clk
0:02:51.3]} 7. h4 {[%clk 0:02:55.4]} 7... h6 {[%clk 0:02:51]} 8. h5 {[%clk
0:02:54.6]} 8... Bh7 {[%clk 0:02:51]} 9. Bd3 {[%clk 0:02:55.5]} 9... Bxd3 {[%clk
0:02:50.4]} 10. Qxd3 {[%clk 0:02:56.4]} 10... e6 {[%clk 0:02:50.7]} 11. Bd2
{[%clk 0:02:52.8]} 11... Ngf6 {[%clk 0:02:50.2]} 12. O-O-O {[%clk 0:02:52.8]}
12... Be7 {[%clk 0:02:50.1]} 13. Kb1 {[%clk 0:02:51.4]} 13... Qb6 {[%clk
0:02:44.9]} 14. c4 {[%clk 0:02:43.4]} 14... O-O-O {[%clk 0:02:40.4]} 15. Bc3
{[%clk 0:02:39]} 15... Qa6 {[%clk 0:02:37]} 16. Qe2 {[%clk 0:02:35]} 16... Nb6
{[%clk 0:02:33.2]} 17. b3 {[%clk 0:02:32.5]} 17... Rd7 {[%clk 0:02:33.1]} 18.
Ne5 {[%clk 0:02:31.8]} 18... Ba3 {[%clk 0:02:29.3]} 19. Nxd7 {[%clk 0:02:29.9]}
19... Nbxd7 {[%clk 0:02:29.7]} 20. Ne4 {[%clk 0:02:27.9]} 20... Nd5 {[%clk
0:02:29.3]} 21. Qd3 {[%clk 0:02:14.7]} 21... Nxc3+ {[%clk 0:02:08.5]} 22. Qxc3
{[%clk 0:02:15.6]} 22... f5 {[%clk 0:01:41]} 23. Nc5 {[%clk 0:02:03.9]} 23...
Nxc5 {[%clk 0:01:01.7]} 24. dxc5 {[%clk 0:02:04.8]} 24... Bxc5 {[%clk
0:01:02.1]} 25. Qxg7 {[%clk 0:02:03.3]} 25... Rf8 {[%clk 0:01:02.7]} 26. Qd7+
{[%clk 0:02:02.3]} 26... Kb8 {[%clk 0:01:02.6]} 27. Qxe6 {[%clk 0:02:02.5]}
27... Qa5 {[%clk 0:00:57]} 28. Qe5+ {[%clk 0:01:50]} 28... Ka8 {[%clk
0:00:56.7]} 29. Rhe1 {[%clk 0:01:40]} 29... a6 {[%clk 0:00:54]} 30. Rd3 {[%clk
0:01:31.2]} 30... Qb6 {[%clk 0:00:49.2]} 31. f3 {[%clk 0:01:25.7]} 31... a5
{[%clk 0:00:44.7]} 32. Qg7 {[%clk 0:01:18.6]} 32... a4 {[%clk 0:00:26]} 33. Qxh6
{[%clk 0:01:12.8]} 33... Bb4 {[%clk 0:00:21.2]} 34. Qe3 {[%clk 0:01:07.9]} 34...
Bc5 {[%clk 0:00:20]} 35. Qe2 {[%clk 0:01:04.7]} 35... Rh8 {[%clk 0:00:17.7]} 36.
Red1 {[%clk 0:00:56.4]} 36... Ka7 {[%clk 0:00:16.1]} 37. g4 {[%clk 0:00:56.2]}
37... fxg4 {[%clk 0:00:14.9]} 38. fxg4 {[%clk 0:00:57.1]} 38... Rf8 {[%clk
0:00:13.6]} 39. Rf1 {[%clk 0:00:57]} 39... Rg8 {[%clk 0:00:10.9]} 40. h6 {[%clk
0:00:55.4]} 40... Rh8 {[%clk 0:00:08.5]} 41. g5 {[%clk 0:00:54.8]} 41... Qb4
{[%clk 0:00:08.3]} 42. Qd2 {[%clk 0:00:51.4]} 42... Qb6 {[%clk 0:00:08.3]} 43.
g6 {[%clk 0:00:49]} 43... axb3 {[%clk 0:00:05.4]} 44. Rxb3 {[%clk 0:00:48]}
44... Qc7 {[%clk 0:00:05.3]} 45. g7 {[%clk 0:00:46.1]} 45... Rd8 {[%clk
0:00:03.7]} 46. Qc2 {[%clk 0:00:36.7]} 46... Bd4 {[%clk 0:00:03.8]} 47. Ra3+
{[%clk 0:00:34.5]} 47... Kb8 {[%clk 0:00:03.8]} 48. Rd1 {[%clk 0:00:29.9]} 48...
Qb6+ {[%clk 0:00:03.7]} 49. Rb3 {[%clk 0:00:29.7]} 49... Qa5 {[%clk 0:00:03.4]}
50. Qe4 {[%clk 0:00:25.8]} 50... Qc5 {[%clk 0:00:02.8]} 51. Rxd4 {[%clk
0:00:19.1]} 51... Rxd4 {[%clk 0:00:01.3]} 52. g8=Q+ {[%clk 0:00:18.6]} 52... Ka7
{[%clk 0:00:01.7]} 53. Qg1 {[%clk 0:00:09.8]} 1-0

[Event "*** Titled Tuesday Blitz"]
[Site "Chess.com"]
[Date "2020.11.24"]
[Round "9"]
[White "Chopper1905"]
[Black "Grandelicious"]
[Result "0-1"]
[WhiteElo "2955"]
[BlackElo "2854"]
[TimeControl "180+1"]
[EndTime "12:03:54 PST"]
[Termination "Grandelicious won by resignation"]

1. d4 {[%clk 0:03:00.9]} 1... d5 {[%clk 0:03:00.3]} 2. c4 {[%clk 0:03:00.9]}
2... e6 {[%clk 0:03:01]} 3. Nc3 {[%clk 0:03:00.7]} 3... a6 {[%clk 0:03:01.6]} 4.
cxd5 {[%clk 0:02:58.3]} 4... exd5 {[%clk 0:03:02.5]} 5. Nf3 {[%clk 0:02:56.5]}
5... h6 {[%clk 0:03:02.4]} 6. Bf4 {[%clk 0:02:55]} 6... Nf6 {[%clk 0:03:02.7]}
7. e3 {[%clk 0:02:54.6]} 7... Bd6 {[%clk 0:03:03.3]} 8. Bxd6 {[%clk 0:02:49.5]}
8... Qxd6 {[%clk 0:03:04.2]} 9. Bd3 {[%clk 0:02:48.9]} 9... Bg4 {[%clk
0:03:03.9]} 10. h3 {[%clk 0:02:46.2]} 10... Bxf3 {[%clk 0:03:03.3]} 11. Qxf3
{[%clk 0:02:47.1]} 11... Nbd7 {[%clk 0:03:04]} 12. O-O {[%clk 0:02:45.2]} 12...
O-O {[%clk 0:03:03]} 13. a3 {[%clk 0:02:44.6]} 13... c6 {[%clk 0:02:52.7]} 14.
Rab1 {[%clk 0:02:37.1]} 14... Rfe8 {[%clk 0:02:52.1]} 15. Rfc1 {[%clk
0:02:35.7]} 15... Rac8 {[%clk 0:02:49.1]} 16. b4 {[%clk 0:02:35]} 16... b5
{[%clk 0:02:48.2]} 17. a4 {[%clk 0:02:07.9]} 17... Nb6 {[%clk 0:02:46.4]} 18. a5
{[%clk 0:01:48.1]} 18... Nc4 {[%clk 0:02:46.4]} 19. Bxc4 {[%clk 0:01:43.7]}
19... bxc4 {[%clk 0:02:28.9]} 20. Rb2 {[%clk 0:01:38]} 20... Rb8 {[%clk
0:02:23.7]} 21. Ra1 {[%clk 0:01:38.1]} 21... Rxb4 {[%clk 0:02:19]} 22. Qe2
{[%clk 0:01:34.5]} 22... Rxb2 {[%clk 0:02:15.2]} 23. Qxb2 {[%clk 0:01:34.2]}
23... Rb8 {[%clk 0:02:15.8]} 24. Qc2 {[%clk 0:01:32.2]} 24... Rb3 {[%clk
0:02:14.1]} 25. Na4 {[%clk 0:01:30.1]} 25... Nd7 {[%clk 0:01:46]} 26. e4 {[%clk
0:01:19.2]} 26... Qb4 {[%clk 0:01:31.5]} 27. exd5 {[%clk 0:01:17]} 27... cxd5
{[%clk 0:01:32.4]} 28. Qf5 {[%clk 0:01:16.9]} 28... Nf8 {[%clk 0:01:16.8]} 29.
Nc5 {[%clk 0:01:14.9]} 29... Ra3 {[%clk 0:01:09.6]} 30. Rb1 {[%clk 0:01:00.2]}
30... Qxa5 {[%clk 0:01:02.5]} 31. Rb7 {[%clk 0:01:00]} 31... Qe1+ {[%clk
0:00:43.5]} 32. Kh2 {[%clk 0:00:59.7]} 32... Qe8 {[%clk 0:00:42.4]} 33. Qxd5
{[%clk 0:00:56.4]} 33... c3 {[%clk 0:00:40.4]} 34. Qc4 {[%clk 0:00:55.4]} 34...
Ne6 {[%clk 0:00:28.2]} 35. Nd7 {[%clk 0:00:34.8]} 35... Qe7 {[%clk 0:00:19.3]}
36. d5 {[%clk 0:00:30.7]} 36... Qd6+ {[%clk 0:00:17.2]} 37. g3 {[%clk
0:00:29.6]} 37... Ng5 {[%clk 0:00:11.1]} 38. Qc8+ {[%clk 0:00:18.7]} 38... Kh7
{[%clk 0:00:11.4]} 39. Nf8+ {[%clk 0:00:19.1]} 39... Kg8 {[%clk 0:00:12.1]} 40.
h4 {[%clk 0:00:12.5]} 40... Nf3+ {[%clk 0:00:10.6]} 41. Kg2 {[%clk 0:00:11.7]}
41... Ne1+ {[%clk 0:00:09.8]} 42. Kf1 {[%clk 0:00:11.1]} 42... Qxf8 {[%clk
0:00:05.5]} 43. Qc7 {[%clk 0:00:11.2]} 43... Kh7 {[%clk 0:00:05.3]} 44. d6
{[%clk 0:00:10.2]} 44... c2 {[%clk 0:00:04.9]} 45. d7 {[%clk 0:00:08.8]} 45...
Nf3 {[%clk 0:00:04.8]} 46. Kg2 {[%clk 0:00:08.2]} 46... Rd3 {[%clk 0:00:03.8]}
47. Qxc2 {[%clk 0:00:08.1]} 47... Ne1+ {[%clk 0:00:04.2]} 48. Kf1 {[%clk
0:00:08.5]} 48... Nxc2 {[%clk 0:00:05.1]} 49. Rc7 {[%clk 0:00:09.4]} 49... Rxd7
{[%clk 0:00:04.4]} 50. Rxc2 {[%clk 0:00:09.4]} 50... Re7 {[%clk 0:00:04.3]} 51.
Rc6 {[%clk 0:00:09.3]} 51... Qe8 {[%clk 0:00:05.2]} 52. Rxa6 {[%clk 0:00:09.6]}
52... Qb5+ {[%clk 0:00:05.6]} 53. Kg2 {[%clk 0:00:10.5]} 53... Qxa6 {[%clk
0:00:06.5]} 0-1

[Event "*** Titled Tuesday Blitz"]
[Site "Chess.com"]
[Date "2020.11.24"]
[Round "9"]
[White "djano"]
[Black "Jungle_Jaguar"]
[Result "0-1"]
[WhiteElo "2458"]
[BlackElo "2612"]
[TimeControl "180+1"]
[EndTime "12:04:00 PST"]
[Termination "Jungle_Jaguar won by resignation"]

1. d4 {[%clk 0:03:00.9]} 1... Nf6 {[%clk 0:02:59.6]} 2. Nf3 {[%clk 0:03:00.9]}
2... g6 {[%clk 0:02:58.5]} 3. c3 {[%clk 0:03:01]} 3... Bg7 {[%clk 0:02:58.4]} 4.
Bg5 {[%clk 0:02:54.5]} 4... O-O {[%clk 0:02:57.4]} 5. Nbd2 {[%clk 0:02:53.4]}
5... d5 {[%clk 0:02:57]} 6. e3 {[%clk 0:02:53.7]} 6... Nc6 {[%clk 0:02:49.5]} 7.
Bb5 {[%clk 0:02:49.7]} 7... Bf5 {[%clk 0:02:43.2]} 8. O-O {[%clk 0:02:42.9]}
8... a6 {[%clk 0:02:31]} 9. Be2 {[%clk 0:02:40.2]} 9... e5 {[%clk 0:02:20.4]}
10. dxe5 {[%clk 0:02:38.2]} 10... Nxe5 {[%clk 0:02:20.2]} 11. Nxe5 {[%clk
0:02:38.3]} 11... Qd6 {[%clk 0:01:59.4]} 12. Nef3 {[%clk 0:02:36.6]} 12... Rfe8
{[%clk 0:01:55]} 13. a4 {[%clk 0:02:35.4]} 13... h6 {[%clk 0:01:53.6]} 14. Bf4
{[%clk 0:02:34.9]} 14... Qe7 {[%clk 0:01:53.9]} 15. Qb3 {[%clk 0:02:29.2]} 15...
c6 {[%clk 0:01:52.3]} 16. Rfe1 {[%clk 0:02:22.5]} 16... Nh5 {[%clk 0:01:41.6]}
17. Bg3 {[%clk 0:02:18.2]} 17... Nxg3 {[%clk 0:01:38]} 18. hxg3 {[%clk
0:02:19.1]} 18... h5 {[%clk 0:01:32]} 19. Nd4 {[%clk 0:02:17]} 19... Bg4 {[%clk
0:01:26]} 20. Bxg4 {[%clk 0:02:13.9]} 20... hxg4 {[%clk 0:01:26]} 21. Qd1 {[%clk
0:02:11.9]} 21... Qg5 {[%clk 0:01:25.1]} 22. f4 {[%clk 0:02:05.9]} 22... gxf3
{[%clk 0:01:15.5]} 23. Qxf3 {[%clk 0:02:04.5]} 23... Be5 {[%clk 0:01:14.9]} 24.
Nf1 {[%clk 0:01:56.2]} 24... Kg7 {[%clk 0:01:13.1]} 25. e4 {[%clk 0:01:36.9]}
25... Rad8 {[%clk 0:00:36.2]} 26. exd5 {[%clk 0:01:35.1]} 26... Rxd5 {[%clk
0:00:36.7]} 27. Rad1 {[%clk 0:01:25.3]} 27... Rh8 {[%clk 0:00:34.1]} 28. Ne2
{[%clk 0:01:19.7]} 28... Ra5 {[%clk 0:00:17.5]} 29. Nf4 {[%clk 0:01:14.9]} 29...
Bc7 {[%clk 0:00:15.8]} 30. Rd7 {[%clk 0:01:06.7]} 30... Bb6+ {[%clk 0:00:15.8]}
31. Ne3 {[%clk 0:01:06.9]} 31... Qf6 {[%clk 0:00:10]} 32. Nh3 {[%clk 0:00:51.6]}
32... Rf5 {[%clk 0:00:10.1]} 33. Qd1 {[%clk 0:00:45.8]} 33... Re5 {[%clk
0:00:09.4]} 34. Rd3 {[%clk 0:00:37.2]} 34... Qe6 {[%clk 0:00:09.3]} 35. Qf3
{[%clk 0:00:32.4]} 35... Re8 {[%clk 0:00:08.4]} 36. Nf4 {[%clk 0:00:26.4]} 36...
Qb3 {[%clk 0:00:08.3]} 37. Kf1 {[%clk 0:00:22.8]} 37... Qxb2 {[%clk 0:00:07.4]}
38. Rd7 {[%clk 0:00:17.1]} 38... Bxe3 {[%clk 0:00:06.8]} 39. Ne6+ {[%clk
0:00:15.4]} 39... R8xe6 {[%clk 0:00:04.8]} 40. Qxf7+ {[%clk 0:00:15.1]} 40...
Kh6 {[%clk 0:00:05.1]} 41. Qf8+ {[%clk 0:00:15.6]} 41... Kg5 {[%clk 0:00:02.9]}
42. Qd8+ {[%clk 0:00:15.8]} 42... Rf6+ {[%clk 0:00:03.3]} 43. Qxf6+ {[%clk
0:00:13.2]} 43... Kxf6 {[%clk 0:00:04.2]} 44. Rd6+ {[%clk 0:00:13.8]} 44... Re6
{[%clk 0:00:04.5]} 45. Rxe6+ {[%clk 0:00:13.7]} 45... Kxe6 {[%clk 0:00:05.4]}
46. Rxe3+ {[%clk 0:00:14.5]} 46... Kd5 {[%clk 0:00:05.9]} 47. Re2 {[%clk
0:00:15.2]} 47... Qb1+ {[%clk 0:00:05.8]} 48. Kf2 {[%clk 0:00:15.6]} 48... Qf5+
{[%clk 0:00:06.4]} 49. Ke1 {[%clk 0:00:15.6]} 49... Kc4 {[%clk 0:00:07]} 50. Re3
{[%clk 0:00:16.2]} 50... Qb1+ {[%clk 0:00:07.4]} 51. Kf2 {[%clk 0:00:16.6]}
51... Qc2+ {[%clk 0:00:07.7]} 52. Kf3 {[%clk 0:00:17.5]} 52... b5 {[%clk
0:00:08.1]} 53. axb5 {[%clk 0:00:17.2]} 53... cxb5 {[%clk 0:00:09]} 54. g4
{[%clk 0:00:18.1]} 54... a5 {[%clk 0:00:09.1]} 55. g5 {[%clk 0:00:18.5]} 55...
Qf5+ {[%clk 0:00:08.6]} 56. Kg3 {[%clk 0:00:18.6]} 56... Qxg5+ {[%clk
0:00:09.1]} 57. Kf2 {[%clk 0:00:18.7]} 57... Qxe3+ {[%clk 0:00:09.6]} 58. Kxe3
{[%clk 0:00:18.1]} 58... Kxc3 {[%clk 0:00:10.4]} 0-1